Workbook

Sheet 대덕구(700세대 이상) 18
B1: ㅁ 공동주택 층간소음관리위원회(700세대 이상) 설치 및 운영현황(대덕구)
A3: 연번 | B3: 최 초 설치년도 | C3: 자치구 | D3: 아파트명 | E3: 주소 | F3: 설치현황 | J3: 접수 건수(누적) | L3: 처리 결과 (누적) | O3: 위원회 개최 실적 (연도별) | Z3: 비 고
F4: 동수 | G4: 세대수 | H4: 설치시기 | I4: 위원수(명) | J4: 계 | K4: 층간소음 | L4: 계 | M4: 합의조정(취하) | N4: 미합의 종결
F5: =SUM(F6:F22) -> 200 | G5: =SUM(G6:G21) -> 21237 | H5: ─ | I5: =SUM(I6:I23) -> 0 | J5: 0 | K5: 0 | L5: 0 | M5: 0 | N5: 0 | O5: 2013년 | P5: 2014년 | Q5: 2015년 | R5: 2016년 | S5: 2017년 | T5: 2018년 | U5: 2019년 | V5: 2024년 | W5: 2025년 | X5: 2026년 | Y5: 2027년
A6: 1 | B6: 2015년도 | C6: 대덕구 | D6: 영진로얄아파트 | E6: 대전광역시 대덕구 중리서로 31(중리동) | F6: 7 | G6: 750 | H6: 0월
A7: 2 | B7: 2016년도 | C7: 대덕구 | D7: 선비마을3단지 | E7: 대전광역시 대덕구 동춘당로114번길 60(송촌동) | F7: 16 | G7: 1872 | H7: 0월
A8: 3 | B8: 2018년도 | C8: 대덕구 | D8: 금강로하스 엘크루아파트 | E8: 대전광역시 대덕구 대덕대로 1587(석봉동) | F8: 10 | G8: 765 | H8: 0월
A9: 4 | B9: 2019년도 | C9: 대덕구 | D9: 선비마을5단지 | E9: 대전광역시 대덕구 계족산로 136(송촌동) | F9: 19 | G9: 1555 | H9: 2월
A10: 5 | B10: 2019년도 | C10: 대덕구 | D10: 선비마을4단지 | E10: 대전광역시 대덕구 계족산로 135(송촌동) | F10: 17 | G10: 1428 | H10: 3월
A11: 6 | B11: 2019년도 | C11: 대덕구 | D11: 삼익소월아파트 | E11: 대전광역시 대덕구 동춘당로 160(법동) | F11: 9 | G11: 810 | H11: 4월
A12: 7 | B12: 2022년도 | C12: 대덕구 | D12: e편한세상 대전법동 | E12: 대전광역시 대덕구 중리북로 46(법동) | F12: 12 | G12: 1503 | H12: 7월
A13: 8 | B13: 2023년도 | C13: 대덕구 | D13: 보람아파트 | E13: 대전광역시 대덕구 동춘당로 178(법동) | F13: 14 | G13: 1735 | H13: 12월
A14: 9 | B14: 2024년도 | C14: 대덕구 | D14: 대덕브라운스톤 | E14: 대전광역시 대덕구 신탄진로210번길 91(와동) | F14: 7 | G14: 910 | H14: 11월
A15: 10 | B15: 2024년도 | C15: 대덕구 | D15: 현대아파트 | E15: 대전광역시 대덕구 계족로761번길 24(읍내동) | F15: 15 | G15: 1344 | H15: 10월
A16: 11 | B16: 2024년도 | C16: 대덕구 | D16: 대전 동일스위트 리버스카이 1단지 | E16: 대전광역시 대덕구 대청로 43(신탄진동) | F16: 12 | G16: 1503 | H16: 10월
A17: 12 | B17: 2024년도 | C17: 대덕구 | D17: 선비마을2단지 | E17: 대전광역시 대덕구 동춘당로114번길 47(송촌동) | F17: 11 | G17: 1555 | H17: 12월
A18: 13 | B18: 2024년도 | C18: 대덕구 | D18: 금강엑슬루타워 | E18: 대전광역시 대덕구 대덕대로 1555(석봉동) | F18: 12 | G18: 2312 | H18: 12월
A19: 14 | B19: 2025년도 | C19: 대덕구 | D19: 주공아파트(2단지) | E19: 대전광역시 대덕구 계족로663번길 29(법동) | F19: 11 | G19: 1220 | H19: 1월
A20: 15 | B20: 2025년도 | C20: 대덕구 | D20: 금강센트럴파크 서희스타힐스 | E20: 대전광역시 대덕구 대덕대로1585번길 44(석봉동) | F20: 12 | G20: 835 | H20: 1월
A21: 16 | B21: 2025년도 | C21: 대덕구 | D21: 선비마을1단지 | E21: 대전광역시 대덕구 계족로690번길 21(법동) | F21: 11 | G21: 1140 | H21: 1월
A22: 17 | B22: 2025년도 | C22: 대덕구 | D22: 다사랑아파트 | E22: 대전광역시 대덕구 대덕대로1470번길 55(목상동) | F22: 5 | G22: 900 | H22: 2월
A23: 18 | B23: 2025년도 | C23: 대덕구 | D23: 그린타운아파트 | E23: 대전광역시 대덕구 동춘당로 151(법동) | F23: 12 | G23: 1050 | H23: 8월
F25: =SUM(F6:F24) -> 212 | G25: =SUM(G6:G24) -> 23187

Sheet 동구 (hidden)

Sheet 중구 (hidden)
A1: ㅁ 공동주택 층간소음∙간접흡연 관리위원회 운영현황
A3: 년도 | B3: 자치구 | C3: 아파트명 | D3: 주소 | E3: 층간소음∙간접흡연 관리위원회 현황 | H3: 접수 건수 | K3: 처리 건수 | N3: 처리 결과 | Q3: 비 고(민원내용)
E4: 설치(ㅇ, x ) | F4: 설치시기 | G4: 위원수(명) | H4: 접수(년월) | I4: 층간소음 | J4: 간접흡연 | K4: 처리(년월) | L4: 층간소음 | M4: 간접흡연 | N4: 조정합의 | O4: 종결 | P4: 취하
D5: 계 | E5: 33
D6: 소계(건수) | E6: 6 | G6: =SUM(G7:G42) -> 163 | I6: =SUM(I7:I12) -> 85 | J6: =SUM(J7:J12) -> 25 | L6: =SUM(L7:L12) -> 85 | M6: =SUM(M7:M12) -> 25 | N6: =SUM(N7:N12) -> 0 | O6: =SUM(O7:O12) -> 8 | P6: =SUM(P7:P12) -> 0
A7: 2017 | B7: 중구 | C7: 중촌현대아파트 | D7: 중촌동 16-1 | E7: O | F7: 2017년 | G7: 4 | I7: 12 | J7: 8 | L7: 12 | M7: 8 | Q7: 층간소음, 실내흡연 등
A8: 2017 | B8: 중구 | C8: 새롬(삼부6단지)아파트 | D8: 태평동 419-1 | E8: O | F8: 2017년 | G8: 4
A9: 2017 | B9: 중구 | C9: 버드내2단지아파트 | D9: 태평동 551 | E9: O | F9: 2017년 | G9: 4 | I9: 65 | J9: 17 | L9: 65 | M9: 17 | Q9: 위층 아래층 잦은 마찰
A10: 2017 | B10: 중구 | C10: 문화마을1단지 | D10: 문화동 1-43 | E10: O | F10: 2017년 | G10: 8 | I10: 4 | L10: 4 | O10: 4 | Q10: 층간소음(쌍방 양해 해결)
A11: 2017 | B11: 중구 | C11: 문화마을2단지 | D11: 문화동 1-38 | E11: O | F11: 2017년 | G11: 8 | I11: 4 | L11: 4 | O11: 4 | Q11: 층간소음(쌍방 양해 해결)
A12: 2017 | B12: 중구 | C12: 센트럴파크 2단지 | D12: 문화동 1-253 | E12: O | F12: 2017년 | G12: 3
D13: 소계(건수) | E13: 8 | I13: =SUM(I14:I21) -> 20 | J13: =SUM(J14:J21) -> 4 | L13: =SUM(L14:L21) -> 19 | M13: =SUM(M14:M21) -> 3 | N13: =SUM(N14:N21) -> 2 | O13: =SUM(O14:O21) -> 16 | P13: =SUM(P14:P21) -> 0
A14: 2018 | B14: 중구 | C14: 삼익아파트 | D14: 문화동311-6외1필지 | E14: O | F14: 2018년 | G14: 6 | I14: 2 | L14: 2 | N14: 1 | O14: 1 | Q14: 층간소음(위층과 아래층의 잦은 민원)
A15: 2018 | B15: 중구 | C15: 선화 현대아파트 | D15: 선화동 151-1 | E15: O | F15: 2018년 | G15: 5
A16: 2018 | B16: 중구 | C16: 유천현대1차아파트 | D16: 유천동 10-7 | E16: O | F16: 2018년 | G16: 5 | I16: 5 | J16: 3 | L16: 4 | M16: 2 | N16: 1 | O16: 4 | Q16: 어린이뛰는 소리, 못박는 소리, 흡연으로 인한 민원
A17: 2018 | B17: 중구 | C17: 유천현대2차아파트 | D17: 유천동 10-7 | E17: O | F17: 2018년 | G17: 5
A18: 2018 | B18: 중구 | C18: 늘푸른아파트 | D18: 용두동 99-4 | E18: O | F18: 2018년 | G18: 5
A19: 2018 | B19: 중구 | C19: 유등마을아파트 | D19: 태평동 253-1 | E19: O | F19: 2018년 | G19: 5 | I19: 2 | L19: 2 | Q19: 오후10시 이후 세탁기 등 사용
A20: 2018 | B20: 중구 | C20: 버드내1단지아파트 | D20: 태평동 422-7 | E20: O | F20: 2018년 | G20: 6 | I20: 10 | J20: 1 | L20: 10 | M20: 1 | O20: 11 | Q20: 악기 연주, 운동으로 인한 소음, 흡연으로 인한 항의
A21: 2018 | B21: 중구 | C21: 센트럴스타클래스 | D21: 문화동 1-9 | E21: O | F21: 2018년 | G21: 4 | I21: 1 | L21: 1 | Q21: 위층 아래층 층간소음
D23: 소계(건수) | E23: 19 | I23: =SUM(I24:I42) -> 2 | J23: =SUM(J24:J42) -> 1 | L23: =SUM(L24:L42) -> 2 | M23: =SUM(M24:M42) -> 1 | N23: =SUM(N24:N42) -> 0 | O23: =SUM(O24:O42) -> 3 | P23: =SUM(P24:P42) -> 0
A24: 2019 | B24: 중구 | C24: 대사 계룡아파트 | D24: 대사동 248-219 | E24: O | F24: 2019년 | G24: 3 | Q24: 현재접수내용없음
A25: 2019 | B25: 중구 | C25: 우남스타원아파트 | D25: 사정동 487외 1필지 | E25: O | F25: 2019년 | G25: 5 | Q25: 현재접수내용없음
A26: 2019 | B26: 중구 | C26: 중촌시영아파트 | D26: 중촌동10-3 | E26: O | F26: 2019년 | G26: 3 | Q26: 현재접수내용없음
A27: 2019 | B27: 중구 | C27: 파라곤아파트 | D27: 태평동389-5 | E27: O | F27: 2019년 | G27: 5 | Q27: 현재접수내용없음
A28: 2019 | B28: 중구 | C28: 문화주공1단지아파트 | D28: 문화동779 | E28: O | F28: 2019년 | G28: 5 | Q28: 현재접수내용없음
A29: 2019 | B29: 중구 | C29: 중촌주공2단지아파트 | D29: 중촌동 128-1 | E29: O | F29: 2019년 | G29: 5 | Q29: 현재접수내용없음
A30: 2019 | B30: 중구 | C30: 쌍용예가아파트 | D30: 태평동 319 | E30: O | F30: 2019년 | G30: 5 | I30: 1 | L30: 1 | O30: 1 | Q30: 인테리어공사
A31: 2019 | B31: 중구 | C31: 대흥동 현대1차아파트 | D31: 대흥동 22-7외 1필지 | E31: O | F31: 2019년 | G31: 3 | Q31: 현재접수내용없음
A32: 2019 | B32: 중구 | C32: 삼부아파트4단지 | D32: 태평동 393 | E32: O | F32: 2019년 | G32: 9 | Q32: 현재접수내용없음
A33: 2019 | B33: 중구 | C33: 문화마을금호어울림 | D33: 문화동 1-43 | E33: O | F33: 2019년 | G33: 3 | Q33: 현재접수내용없음
A34: 2019 | B34: 중구 | C34: 한밭가든아파트 | D34: 산성동 78-5외 1필지 | E34: O | F34: 2019년 | G34: 3 | Q34: 현재접수내용없음
A35: 2019 | B35: 중구 | C35: 삼부아파트3단지 | D35: 태평동 403-1 | E35: O | F35: 2019년 | G35: 5 | Q35: 현재접수내용없음
A36: 2019 | B36: 중구 | C36: 한밭우성아파트 | D36: 문화동141 | E36: O | F36: 2019년 | G36: 5 | I36: 1 | L36: 1 | O36: 1 | Q36: 윗집 층간소음(잦은민원)
A37: 2019 | B37: 중구 | C37: 오류동삼성아파트 | D37: 오류동 175-1 | E37: O | F37: 2019년 | G37: 7 | Q37: 현재접수내용없음
A38: 2019 | B38: 중구 | C38: 금호한사랑아파트 | D38: 목동 111-12 | E38: O | F38: 2019년 | G38: 7 | Q38: 현재접수내용없음
A39: 2019 | B39: 중구 | C39: 센트럴뷰 | D39: 선화동 877 | E39: O | F39: 2019년 | G39: 5 | Q39: 현재접수내용없음
A40: 2019 | B40: 중구 | C40: 한신휴플러스보르미 | D40: 문화동311-3 | E40: O | F40: 2019년 | G40: 3 | Q40: 현재접수내용없음
A41: 2019 | B41: 중구 | C41: 목양마을 | D41: 목동 24 | E41: O | F41: 2019년 | G41: 5 | J41: 1 | M41: 1 | O41: 1 | Q41: 흡연민원
A42: 2019 | B42: 중구 | C42: 미르마을 | D42: 용두동 39 | E42: O | F42: 2019년 | G42: 5 | Q42: 현재접수내용없음
D43: 소계(건수) | I43: =SUM(I6,I13,I23) -> 107 | J43: =SUM(J6,J13,J23) -> 30 | L43: =SUM(L6,L13,L23) -> 106 | M43: =SUM(M6,M13,M23) -> 29 | N43: =SUM(N6,N13,N23) -> 2 | O43: =SUM(O6,O13,O23) -> 27 | P43: =SUM(P6,P13,P23) -> 0
A65: * 작성대상 : 의무관리대상
A66: * 작성방법 : 분쟁조정 실적이 없는 경우라도 관리위원회 구성 현황을 기재하고, 분쟁조정 건수는 최근 5년간 (14~18년도) 신청된 사항으로 한정

Sheet 서구 (hidden)
A1: ㅁ 공동주택 층간소음∙간접흡연 관리위원회 운영현황
A3: 년도 | B3: 자치구 | C3: 아파트명 | D3: 주소 | E3: 층간소음∙간접흡연 관리위원회 현황 | H3: 접수 건수 | K3: 처리 건수 | N3: 처리 결과 | Q3: 비 고(민원내용)
E4: 설치(ㅇ, x ) | F4: 설치시기 | G4: 위원수(명) | H4: 접수(년월) | I4: 층간소음 | J4: 간접흡연 | K4: 처리(년월) | L4: 층간소음 | M4: 간접흡연 | N4: 조정합의 | O4: 종결 | P4: 취하
D5: 계 | E5: 54 | G5: =G6+G10+G13+G20+G28+G41+G53 -> 254 | H5: 55 | I5: 35 | J5: 20 | K5: 55 | L5: 35 | M5: 20 | N5: 1 | O5: 53 | P5: 0
A6: 2013 | D6: 소계(건수) | E6: 3 | G6: =SUM(G7:G9) -> 13 | H6: =SUM(I6:J6) -> 4 | I6: =SUM(I7:I9) -> 3 | J6: =SUM(J7:J9) -> 1 | K6: =SUM(L6:M6) -> 4 | L6: =SUM(L7:L9) -> 3 | M6: =SUM(M7:M9) -> 1 | N6: =SUM(N7:N9) -> 0 | O6: =SUM(O7:O9) -> 4 | P6: =SUM(P7:P9) -> 0
B7: 서구 | C7: 둥지아파트 | D7: 둔산동 912 | E7: ㅇ | F7: 2013년 5월 | G7: 5 | H7: 0 | I7: 0 | J7: 0 | K7: 0 | L7: 0 | M7: 0 | N7: 0 | O7: 0 | P7: 0
B8: 서구 | C8: 진달래아파트 | D8: 월평동 312-1 | E8: ㅇ | F8: 2013년 6월 | G8: 4 | H8: 4('19년 8월) | I8: 3 | J8: 1 | K8: 4('19년 8월) | L8: 3 | M8: 1 | N8: 0 | O8: 4 | P8: 0 | Q8: (층간소음)방문 및 방송 등으로 협조요청, (간접흡연) 민원협조공고문 및 방송 등으로 협조요청
B9: 서구 | C9: 아이누리아파트 | D9: 용문동 250-5 | E9: ㅇ | F9: 2013년 10월 | G9: 4 | H9: 0 | I9: 0 | J9: 0 | K9: 0 | L9: 0 | M9: 0 | N9: 0 | O9: 0 | P9: 0
A10: 2014 | D10: 소계(건수) | E10: 2 | G10: =SUM(G11:G12) -> 12 | H10: =SUM(I10:J10) -> 2 | I10: =SUM(I11:I12) -> 1 | J10: =SUM(J11:J12) -> 1 | K10: =SUM(L10:M10) -> 2 | L10: =SUM(L11:L12) -> 1 | M10: =SUM(M11:M12) -> 1 | N10: =SUM(N11:N12) -> 0 | O10: =SUM(O11:O12) -> 2 | P10: =SUM(P11:P12) -> 0
B11: 서구 | C11: 원앙마을2단지아파트 | D11: 관저동 984 | E11: ㅇ | F11: 2014년 2월 | G11: 8 | H11: 2('19년 8월) | I11: 1 | J11: 1 | K11: 2('19년 8월) | L11: 1 | M11: 1 | N11: 0 | O11: 2 | P11: 0 | Q11: (층간소음)윗층-아랫층의 민원
B12: 서구 | C12: 용문서우아파트 | D12: 용문동 255-4 | E12: ㅇ | F12: 2014년 5월 | G12: 4 | H12: 0 | I12: 0 | J12: 0 | K12: 0 | L12: 0 | M12: 0 | N12: 0 | O12: 0 | P12: 0
A13: 2015 | D13: 소계(건수) | E13: 6 | G13: =SUM(G14:G19) -> 29 | H13: =SUM(I13:J13) -> 11 | I13: =SUM(I14:I19) -> 9 | J13: =SUM(J14:J19) -> 2 | K13: =SUM(L13:M13) -> 11 | L13: =SUM(L14:L19) -> 9 | M13: =SUM(M14:M19) -> 2 | N13: =SUM(N14:N19) -> 0 | O13: =SUM(O14:O19) -> 10 | P13: =SUM(P14:P19) -> 0
B14: 서구 | C14: 큰마을아파트 | D14: 갈마동 1418 | E14: ㅇ | F14: 2015년 1월 | G14: 5 | H14: 1('19년 10월) | I14: 1 | J14: 0 | K14: 1('19년 10월) | L14: 1 | M14: 0 | N14: 0 | O14: 1 | P14: 0 | Q14: 층간소음(개짖는 소리 등)
B15: 서구 | C15: 다모아아파트 | D15: 월평동 311 | E15: ㅇ | F15: 2015년 1월 | G15: 5 | H15: 0 | I15: 0 | J15: 0 | K15: 0 | L15: 0 | M15: 0 | N15: 0 | O15: 0 | P15: 0
B16: 서구 | C16: 한라비발디아파트 | D16: 도안동 966 | E16: ㅇ | F16: 2015년 1월 | G16: 6 | H16: 5('16년 11월, '19년 11월) | I16: 4 | J16: 1 | K16: 5('16년 11월, '19년 11월) | L16: 4 | M16: 1 | N16: 0 | O16: 4 | P16: 0 | Q16: 윗층에서 저녁시간에 아이들 뛰는 소리로 잦은 항의, 늦은 밤 층간소음 민원에 대해 방송안내, 간접흡연 민원에 대해 금연표지부착처리
B17: 서구 | C17: 무지개아파트 | D17: 월평동 300 | E17: ㅇ | F17: 2015년 7월 | G17: 6 | H17: 0 | I17: 0 | J17: 0 | K17: 0 | L17: 0 | M17: 0 | N17: 0 | O17: 0 | P17: 0
B18: 서구 | C18: 개나리아파트 | D18: 탄방동 626 | E18: ㅇ | F18: 2015년 9월 | G18: 4 | H18: 5('19년 3월, 5월, 6월 , 9월) | I18: 4 | J18: 1 | K18: 5('19년 3월, 5월, 6월 , 9월) | L18: 4 | M18: 1 | N18: 0 | O18: 5 | P18: 0 | Q18: 층간소음 세대방문 자제요청, 간접흡연 게시판게시 등 홍보
B19: 서구 | C19: 샘머리아파트2단지 | D19: 둔산동 908 | E19: ㅇ | F19: 2015년 10월 | G19: 3 | H19: 0 | I19: 0 | J19: 0 | K19: 0 | L19: 0 | M19: 0 | N19: 0 | O19: 0 | P19: 0 | Q19: 층간소음 세대방문 자제요청, 간접흡연 게시판게시 등 홍보
A20: 2016 | D20: 소계(건수) | E20: 7 | G20: =SUM(G21:G27) -> 34 | H20: =SUM(I20:J20) -> 6 | I20: =SUM(I21:I27) -> 3 | J20: =SUM(J21:J27) -> 3 | K20: =SUM(L20:M20) -> 6 | L20: =SUM(L21:L27) -> 3 | M20: =SUM(M21:M27) -> 3 | N20: =SUM(N21:N27) -> 1 | O20: =SUM(O21:O27) -> 5 | P20: =SUM(P21:P27) -> 0
B21: 서구 | C21: 청솔아파트 | D21: 둔산동 1811 | E21: ㅇ | F21: 2016년 1월 | G21: 5 | H21: 0 | I21: 0 | J21: 0 | K21: 0 | L21: 0 | M21: 0 | N21: 0 | O21: 0 | P21: 0
B22: 서구 | C22: 전원아파트 | D22: 월평동 312 | E22: ㅇ | F22: 2016년 2월 | G22: 5 | H22: 3('19년 4월) | I22: 0 | J22: 3 | K22: 3('19년 4월) | L22: 0 | M22: 3 | N22: 0 | O22: 3 | P22: 0 | Q22: 세대를 특정하지 않은 간접흡연 민원에 대해 승강기 및 게시판에 간접흡연에 대한 게시물 부착 및 안내방송 실시
B23: 서구 | C23: 오량마을마루미아파트 | D23: 복수동 270-1 | E23: ㅇ | F23: 2016년 11월 | G23: 3 | H23: 0 | I23: 0 | J23: 0 | K23: 0 | L23: 0 | M23: 0 | N23: 0 | O23: 0 | P23: 0
B24: 서구 | C24: 대자연마을아파트 | D24: 관저동 990 | E24: ㅇ | F24: 2016년 11월 | G24: 5 | H24: 0 | I24: 0 | J24: 0 | K24: 0 | L24: 0 | M24: 0 | N24: 0 | O24: 0 | P24: 0
B25: 서구 | C25: 관저리슈빌아파트 | D25: 관저동 1420 | E25: ㅇ | F25: 2016년 11월 | G25: 6 | H25: 0 | I25: 0 | J25: 0 | K25: 0 | L25: 0 | M25: 0 | N25: 0 | O25: 0 | P25: 0
B26: 서구 | C26: 강변아파트 | D26: 만년동 1-2 | E26: ㅇ | F26: 2016년 11월 | G26: 5 | H26: 0 | I26: 0 | J26: 0 | K26: 0 | L26: 0 | M26: 0 | N26: 0 | O26: 0 | P26: 0
B27: 서구 | C27: 도안베르디움아파트 | D27: 도안동 1373 | E27: ㅇ | F27: 2016년 11월 | G27: 5 | H27: 3('19년 8월, 11월) | I27: 3 | J27: 0 | K27: 3('19년 8월, 11월) | L27: 3 | M27: 0 | N27: 1 | O27: 2 | P27: 0 | Q27: 빈번한 충격음 발생으로 안내방송 실시, 저녁시간 위층 걸음소리에 대해 저감토록 권고조치, 물소리로 인한 민원으로 소음측정 요청하여 층간소음 이웃사이센터 안내
A28: 2017 | D28: 소계(건수) | E28: 12 | G28: =SUM(G29:G40) -> 56 | H28: =SUM(I28:J28) -> 2 | I28: =SUM(I29:I40) -> 2 | J28: =SUM(J29:J40) -> 0 | K28: =SUM(L28:M28) -> 2 | L28: =SUM(L29:L40) -> 2 | M28: =SUM(M29:M40) -> 0 | N28: =SUM(N29:N40) -> 0 | O28: =SUM(O29:O40) -> 2 | P28: =SUM(P29:P40) -> 0
B29: 서구 | C29: 한아름아파트 | D29: 월평동 222 | E29: ㅇ | F29: 2017년 1월 | G29: 5 | H29: 0 | I29: 0 | J29: 0 | K29: 0 | L29: 0 | M29: 0 | N29: 0 | O29: 0 | P29: 0
B30: 서구 | C30: 초록마을2단지아파트 | D30: 복수동 612 | E30: ㅇ | F30: 2017년 1월 | G30: 5 | H30: 0 | I30: 0 | J30: 0 | K30: 0 | L30: 0 | M30: 0 | N30: 0 | O30: 0 | P30: 0
B31: 서구 | C31: 상아아파트 | D31: 만년동 1 | E31: ㅇ | F31: 2017년 2월 | G31: 4 | H31: 1('19년 4월) | I31: 1 | J31: 0 | K31: 1('19년 4월) | L31: 1 | M31: 0 | N31: 0 | O31: 1 | P31: 0 | Q31: 윗층 소음으로인한 아랫층 항의, 윗층과 협의하여 생활소음 감소
B32: 서구 | C32: 초록마을3단지리슈빌아파트 | D32: 복수동 615 | E32: ㅇ | F32: 2017년 3월 | G32: 5 | H32: 0 | I32: 0 | J32: 0 | K32: 0 | L32: 0 | M32: 0 | N32: 0 | O32: 0 | P32: 0
B33: 서구 | C33: 효성타운아파트 | D33: 도마동 180-2 | E33: ㅇ | F33: 2017년 5월 | G33: 6 | H33: 0 | I33: 0 | J33: 0 | K33: 0 | L33: 0 | M33: 0 | N33: 0 | O33: 0 | P33: 0
B34: 서구 | C34: 원앙마을4-1단지아파트 | D34: 관저동 999 | E34: ㅇ | F34: 2017년 6월 | G34: 4 | H34: 0 | I34: 0 | J34: 0 | K34: 0 | L34: 0 | M34: 0 | N34: 0 | O34: 0 | P34: 0
B35: 서구 | C35: 강변들보람아파트 | D35: 정림동 641 | E35: ㅇ | F35: 2017년 6월 | G35: 3 | H35: 1('19년 12월) | I35: 1 | J35: 0 | K35: 1('19년 12월) | L35: 1 | M35: 0 | N35: 0 | O35: 1 | P35: 0 | Q35: 윗층 층간소음에 대한 아랫층 항의
B36: 서구 | C36: 은아1단지아파트 | D36: 가수원동 769-2 | E36: ㅇ | F36: 2017년 7월 | G36: 5 | H36: 0 | I36: 0 | J36: 0 | K36: 0 | L36: 0 | M36: 0 | N36: 0 | O36: 0 | P36: 0
B37: 서구 | C37: 아이누리주상복합 | D37: 괴정동 426-1 | E37: ㅇ | F37: 2017년 8월 | G37: 4 | H37: 0 | I37: 0 | J37: 0 | K37: 0 | L37: 0 | M37: 0 | N37: 0 | O37: 0 | P37: 0
B38: 서구 | C38: 가수원계룡아파트 | D38: 가수원동 643 | E38: ㅇ | F38: 2017년 10월 | G38: 5 | H38: 0 | I38: 0 | J38: 0 | K38: 0 | L38: 0 | M38: 0 | N38: 0 | O38: 0 | P38: 0
B39: 서구 | C39: 초원아파트 | D39: 만년동 1-1 | E39: ㅇ | F39: 2017년 10월 | G39: 5 | H39: 0 | I39: 0 | J39: 0 | K39: 0 | L39: 0 | M39: 0 | N39: 0 | O39: 0 | P39: 0
B40: 서구 | C40: 한마루삼성아파트 | D40: 둔산동 1388 | E40: ㅇ | F40: 2017년 12월 | G40: 5 | H40: 0 | I40: 0 | J40: 0 | K40: 0 | L40: 0 | M40: 0 | N40: 0 | O40: 0 | P40: 0
A41: 2018 | D41: 소계(건수) | E41: 11 | G41: =SUM(G42:G52) -> 50 | H41: =SUM(I41:J41) -> 8 | I41: =SUM(I42:I52) -> 8 | J41: =SUM(J42:J52) -> 0 | K41: =SUM(L41:M41) -> 8 | L41: =SUM(L42:L52) -> 8 | M41: =SUM(M42:M52) -> 0 | N41: =SUM(N42:N52) -> 0 | O41: =SUM(O42:O52) -> 8 | P41: =SUM(P42:P52) -> 0
B42: 서구 | C42: 은아5단지아파트 | D42: 가수원동 762 | E42: ㅇ | F42: 2018년 1월 | G42: 5 | H42: 0 | I42: 0 | J42: 0 | K42: 0 | L42: 0 | M42: 0 | N42: 0 | O42: 0 | P42: 0
B43: 서구 | C43: 초록마을1단지 | D43: 복수동 611 | E43: ㅇ | F43: 2018년 4월 | G43: 4 | H43: 1('18년 4월) | I43: 1 | J43: 0 | K43: 1('18년 4월) | L43: 1 | M43: 0 | N43: 0 | O43: 1 | P43: 0 | Q43: 윗층 소음으로 아랫층의 잦은 항의, 아랫층 이사로 종결
B44: 서구 | C44: 수목토아파트 | D44: 도안동 1364 | E44: ㅇ | F44: 2018년 5월 | G44: 3 | H44: 0 | I44: 0 | J44: 0 | K44: 0 | L44: 0 | M44: 0 | N44: 0 | O44: 0 | P44: 0
B45: 서구 | C45: 다온숲3단지아파트 | D45: 관저동 1584 | E45: ㅇ | F45: 2018년 5월 | G45: 5 | H45: 6('18년 6월, '19년 1월, 3월) | I45: 6 | J45: 0 | K45: 6('18년 6월, '19년 1월, 3월) | L45: 6 | M45: 0 | N45: 0 | O45: 6 | P45: 0 | Q45: (층간소음)윗층-아랫층의 민원
B46: 서구 | C46: 도안아이파크아파트 | D46: 도안동 1362 | E46: ㅇ | F46: 2018년 6월 | G46: 5 | H46: 1('18년 6월) | I46: 1 | J46: 0 | K46: 1('18년 8월) | L46: 1 | M46: 0 | N46: 0 | O46: 1 | P46: 0 | Q46: 윗층 소음에 의한 아랫층 항의, 윗층 및 아랫층 세대와 면담 및 상호간 배려 요청
B47: 서구 | C47: 맑은아침아파트 | D47: 내동 2 | E47: ㅇ | F47: 2018년 7월 | G47: 5 | H47: 0 | I47: 0 | J47: 0 | K47: 0 | L47: 0 | M47: 0 | N47: 0 | O47: 0 | P47: 0
B48: 서구 | C48: 관저어반힐스아파트 | D48: 관저동 1593 | E48: ㅇ | F48: 2018년 7월 | G48: 5 | H48: 0 | I48: 0 | J48: 0 | K48: 0 | L48: 0 | M48: 0 | N48: 0 | O48: 0 | P48: 0
B49: 서구 | C49: 내동코오롱아파트 | D49: 내동 151 | E49: ㅇ | F49: 2018년 12월 | G49: 5 | H49: 0 | I49: 0 | J49: 0 | K49: 0 | L49: 0 | M49: 0 | N49: 0 | O49: 0 | P49: 0
B50: 서구 | C50: 복음로얄아파트 | D50: 도마동 359-10 | E50: ㅇ | F50: 2018년 12월 | G50: 4 | H50: 0 | I50: 0 | J50: 0 | K50: 0 | L50: 0 | M50: 0 | N50: 0 | O50: 0 | P50: 0
B51: 서구 | C51: 동산맨션아파트 | D51: 갈마동 343-1 | E51: ㅇ | F51: 2018년 12월 | G51: 5 | H51: 0 | I51: 0 | J51: 0 | K51: 0 | L51: 0 | M51: 0 | N51: 0 | O51: 0 | P51: 0
B52: 서구 | C52: 정림우성아파트 | D52: 정림동 584 | E52: ㅇ | F52: 2018년 12월 | G52: 4 | H52: 0 | I52: 0 | J52: 0 | K52: 0 | L52: 0 | M52: 0 | N52: 0 | O52: 0 | P52: 0
A53: 2019 | D53: 소계(건수) | E53: 13 | G53: =SUM(G54:G66) -> 60 | H53: =SUM(I53:J53) -> 22 | I53: =SUM(I54:I66) -> 9 | J53: =SUM(J54:J66) -> 13 | K53: =SUM(L53:M53) -> 22 | L53: =SUM(L54:L66) -> 9 | M53: =SUM(M54:M66) -> 13 | N53: =SUM(N54:N66) -> 0 | O53: =SUM(O54:O66) -> 22 | P53: =SUM(P54:P66) -> 0
B54: 서구 | C54: 국화우성아파트 | D54: 둔산동 1809 | E54: ㅇ | F54: 2019년 1월 | G54: 3 | H54: 2 ('19년3월, 9월) | I54: 1 | J54: 1 | K54: 2 ('19년 6월, 9월) | L54: 1 | M54: 1 | N54: 0 | O54: 2 | P54: 0 | Q54: 층간소음 유발 주민 이사로 종결, 금연구역 설정으로 종결
B55: 서구 | C55: 스위트빌2차아파트 | D55: 탄방동 636,637 | E55: ㅇ | F55: 2019년 2월 | G55: 3 | H55: 10('19년) | I55: 6 | J55: 4 | K55: 10('19년) | L55: 6 | M55: 4 | N55: 0 | O55: 10 | P55: 0 | Q55: 관련자 면담, 설득, 주기적방송실시
B56: 서구 | C56: 황실타운아파트 | D56: 월평동 302 | E56: ㅇ | F56: 2019년 3월 | G56: 7 | H56: 1('19년 3월) | I56: 1 | J56: 0 | K56: 1('19년 3월) | L56: 1 | M56: 0 | N56: 0 | O56: 1 | P56: 0 | Q56: 윗층 소음에 대한 아랫층의 잦은 항의
B57: 서구 | C57: 늘푸른아파트 | D57: 정림동 641-1 | E57: ㅇ | F57: 2019년 4월 | G57: 5 | H57: 0 | I57: 0 | J57: 0 | K57: 0 | L57: 0 | M57: 0 | N57: 0 | O57: 0 | P57: 0
B58: 서구 | C58: 은아2단지아파트 | D58: 가수원동 793-1 | E58: ㅇ | F58: 2019년 4월 | G58: 3 | H58: 0 | I58: 0 | J58: 0 | K58: 0 | L58: 0 | M58: 0 | N58: 0 | O58: 0 | P58: 0
B59: 서구 | C59: 내동탑스빌아파트 | D59: 내동 17-1 | E59: ㅇ | F59: 2019년 5월 | G59: 3 | H59: 8('19년 8월, 9월) | I59: 0 | J59: 8 | K59: 8('19년 8월, 9월) | L59: 0 | M59: 8 | N59: 0 | O59: 8 | P59: 0 | Q59: 간접흡연 피해세대의 잦은 항의로 게시판 공고 및 안내방송, 해당세대방문하여 실내흡연 중단 권고 요청
B60: 서구 | C60: 쌍용갈마아파트 | D60: 갈마동 402-2 | E60: ㅇ | F60: 2019년 6월 | G60: 5 | H60: 0 | I60: 0 | J60: 0 | K60: 0 | L60: 0 | M60: 0 | N60: 0 | O60: 0 | P60: 0
B61: 서구 | C61: 한마루럭키아파트 | D61: 둔산동 1388 | E61: ㅇ | F61: 2019년 6월 | G61: 6 | H61: 0 | I61: 0 | J61: 0 | K61: 0 | L61: 0 | M61: 0 | N61: 0 | O61: 0 | P61: 0
B62: 서구 | C62: 향촌아파트 | D62: 둔산동 970 | E62: ㅇ | F62: 2019년 7월 | G62: 5 | H62: 1('19년 10월) | I62: 1 | J62: 0 | K62: 1('19년 10월) | L62: 1 | M62: 0 | N62: 0 | O62: 1 | P62: 0 | Q62: (층간소음)윗층-아랫층의 민원
B63: 서구 | C63: 구봉마을5단지아파트 | D63: 관저동 1137 | E63: ㅇ | F63: 2019년 7월 | G63: 5 | H63: 0 | I63: 0 | J63: 0 | K63: 0 | L63: 0 | M63: 0 | N63: 0 | O63: 0 | P63: 0
B64: 서구 | C64: 녹원아파트 | D64: 둔산동 1204 | E64: ㅇ | F64: 2019년 8월 | G64: 5 | H64: 0 | I64: 0 | J64: 0 | K64: 0 | L64: 0 | M64: 0 | N64: 0 | O64: 0 | P64: 0
B65: 서구 | C65: 갤러리빌4차아파트 | D65: 둔산동 1141 | E65: ㅇ | F65: 2019년 9월 | G65: 5 | H65: 0 | I65: 0 | J65: 0 | K65: 0 | L65: 0 | M65: 0 | N65: 0 | O65: 0 | P65: 0
B66: 서구 | C66: 한마음아파트 | D66: 용문동 285-3외6 | E66: ㅇ | F66: 2019년 9월 | G66: 5 | H66: 0 | I66: 0 | J66: 0 | K66: 0 | L66: 0 | M66: 0 | N66: 0 | O66: 0 | P66: 0

Sheet 유성 (hidden)
A1: ㅁ 공동주택 층간소음∙간접흡연 관리위원회 운영현황
Q2: 2019.10.31.기준
A3: 년도 | B3: 자치구 | C3: 아파트명 | D3: 주소 | E3: 층간소음∙간접흡연 관리위원회 현황 | H3: 접수 건수 | K3: 처리 건수 | N3: 처리 결과 | Q3: 비 고(민원내용)
E4: 설치(ㅇ, x ) | F4: 설치시기 | G4: 위원수(명) | H4: 접수(년월) | I4: 층간소음 | J4: 간접흡연 | K4: 처리(년월) | L4: 층간소음 | M4: 간접흡연 | N4: 조정합의 | O4: 종결 | P4: 취하
C5: =C6+C21+C29 -> 26 | D5: 계 | G5: =G6+G21+G29 -> 136 | I5: =I6+I21+I29 -> 587 | J5: =J6+J21+J29 -> 511 | L5: =L6+L21+L29 -> 583 | M5: =M6+M21+M29 -> 508 | N5: =N6+N21+N29 -> 22 | O5: =O6+O21+O29 -> 1021
C6: =COUNTA(C7:C20) -> 14 | D6: 소계(건수) | G6: =SUM(G7:G20) -> 74 | I6: =SUM(I7:I20) -> 565 | J6: =SUM(J7:J19) -> 489 | L6: =SUM(L7:L19) -> 561 | M6: =SUM(M7:M19) -> 486 | N6: =SUM(N7:N19) -> 13 | O6: =SUM(O7:O19) -> 988
A7: 2017 | B7: 유성구 | C7: 네이처뷰 | D7: 대전 유성구 지족로148번길 22 | E7: ㅇ | F7: 2017. 11. | G7: 5
B8: 유성구 | C8: 노은4단지 | D8: 대전 유성구 지족로148번길 40 | E8: ㅇ | F8: 2017. 4. | G8: 4
B9: 유성구 | C9: 도안6단지센트럴시티 | D9: 대전 유성구 봉명로 93 | E9: ㅇ | F9: 2017 | G9: 5 | I9: 2 | L9: 2 | Q9: 아이들이 뛰는 소리
B10: 유성구 | C10: 도안휴먼시아10단지 | D10: 대전 유성구 원신흥로 37 | E10: ㅇ | F10: 2017.5.16. | G10: 5 | I10: 514 | J10: 478 | L10: 510 | M10: 475 | N10: 7 | O10: 985
B11: 유성구 | C11: 드림월드 | D11: 대전 유성구 문화원로 13 | E11: ㅇ | F11: 2017.11. | G11: 4 | I11: 1 | L11: 1
B12: 유성구 | C12: 반석마을8단지 | D12: 대전 유성구 은구비남로 34 | E12: ㅇ | F12: 2017.1.2. | G12: 4 | I12: 1 | L12: 1 | O12: 1 | Q12: 814동 601호 전출로 종결
B13: 유성구 | C13: 송강한솔아파트 | D13: 대전 유성구 송강로 15 | E13: ㅇ | F13: 2017.6.21. | G13: 4
B14: 유성구 | C14: 송림마을4단지 | D14: 대전 유성구 노은로 358 | E14: ㅇ | F14: 2017.4.25. | G14: 6 | I14: 12 | J14: 11 | L14: 12 | M14: 11 | N14: 2 | O14: 2
B15: 유성구 | C15: 연구원현대아파트 | D15: 대전 유성구 대덕대로541번길 68 | E15: ㅇ | F15: 2017.5. | G15: 9
B16: 유성구 | C16: 유성목련1단지아파트(1,2단지통합운영) | D16: 대전 유성구 월드컵대로290번길 39 | E16: ㅇ | F16: 2017.1. | G16: 5 | I16: 30 | L16: 30 | N16: ㅇ
B17: 유성구 | C17: 유성목련2단지아파트(1,2단지통합운영) | D17: 대전 유성구 월드컵대로290번길 20 | E17: ㅇ | F17: 2017.1. | G17: 5
B18: 유성구 | C18: 죽동천년나무 | D18: 대전 유성구 죽동로 72 | E18: ㅇ | F18: 2017 | G18: 7
B19: 유성구 | C19: 트리풀시티5단지 | D19: 대전 유성구 상대로 16 | E19: ㅇ | F19: 2017.2. | G19: 4 | I19: 5 | L19: 5 | N19: 4 | Q19: 1건 미결
B20: 유성구 | C20: 한마을아파트 | D20: 대전 유성구 구즉로 16 | E20: ㅇ | F20: 2017.1.20. | G20: 7
C21: =COUNTA(C22:C28) -> 7 | D21: 소계(건수) | G21: =SUM(G22:G28) -> 36 | I21: =SUM(I22:I28) -> 22 | J21: =SUM(J22:J28) -> 22 | L21: =SUM(L22:L28) -> 22 | M21: =SUM(M22:M28) -> 22 | N21: =SUM(N22:N28) -> 9 | O21: =SUM(O22:O28) -> 33 | P21: =SUM(P22:P28) -> 2
A22: 2018 | B22: 유성구 | C22: 반석마을8단지 | D22: 대전 유성구 반석동로 82 | E22: ㅇ | F22: 2018.4.1. | G22: 4 | I22: 2 | J22: 1 | L22: 2 | M22: 1 | N22: 2 | P22: 1
B23: 유성구 | C23: 봉산유먼시아2단지 | D23: 대전 유성구 와룡로 136번길 75 | E23: ㅇ | F23: 2018.2.16. | G23: 5 | I23: 14 | J23: 21 | L23: 14 | M23: 21 | N23: 2 | O23: 33
B24: 유성구 | C24: 죽동대원칸타빌 | D24: 대전 유성구 죽동로 39 | E24: ㅇ | F24: 2018.3.1. | G24: 5 | I24: 1 | L24: 1 | P24: 1
B25: 유성구 | C25: 죽동예미지 | D25: 대전 유성구 죽동로 321 | E25: ㅇ | F25: 2018 | G25: 7 | I25: 5 | L25: 5 | N25: 5
B26: 유성구 | C26: 테크노밸리7단지 | D26: 대전 유성구 관평1로 12 | E26: ㅇ | F26: 2018 | G26: 5
B27: 유성구 | C27: 송강마을2단지 | D27: 대전 유성구 봉산로 39 | E27: ㅇ | F27: 2018 | G27: 5
B28: 유성구 | C28: 열매마을9단지 | D28: 대전 유성구 은구비남로 56 | E28: ㅇ | F28: 2018.12.28. | G28: 5
C29: =COUNTA(C30:C34) -> 5 | D29: 소계(건수) | G29: =SUM(G30:G34) -> 26
A30: 2019 | B30: 유성구 | C30: 다솔아파트 | D30: 대전 유성구 궁동로 5 | E30: ㅇ | F30: 2019.2.25. | G30: 5
B31: 유성구 | C31: 반석마을6단지 | D31: 대전 유성구 반석서로 98 | E31: ㅇ | F31: 2019.3.5. | G31: 6
B32: 유성구 | C32: 노은3지구1단지 | D32: 대전 유성구 지족로190번길 15 | E32: ㅇ | F32: 2019.3.5. | G32: 5
B33: 유성구 | C33: 열매마을11단지 | D33: 대전 유성구 왕가봉로 23 | E33: ㅇ | F33: 2019.3.25. | G33: 5
B34: 유성구 | C34: 송림마을6단지 | D34: 대전 유성구 노은로426번길 15 | E34: ㅇ | F34: 2019.3.22. | G34: 5
A74: * 작성대상 : 의무관리대상
A75: * 작성방법 : 분쟁조정 실적이 없는 경우라도 관리위원회 구성 현황을 기재하고, 분쟁조정 건수는 최근 5년간 (14~18년도) 신청된 사항으로 한정
